fUSD/lending_fUSD_20240114
["ID","MTS","AMOUNT","RATE_DAILY","PERIOD"]
[311581912,1705254645180,-709.82,0.00030136,2]
[311581913,1705254645190,-500.0,0.00030136,2]
[311581916,1705254645199,-500.0,0.00030136,2]
[311581918,1705254645208,-500.0,0.00030136,2]
[311581920,1705254645218,-1223.32,0.00030136,2]
[311581922,1705254645229,-1094.22,0.00030136,2]
[311581924,1705254645238,-710.54,0.00030136,2]
[311581926,1705254645247,-500.0,0.00030136,2]
[311581928,1705254645257,-500.0,0.00030136,2]
[311581930,1705254645266,-793.79,0.00030136,2]
[311581932,1705254645275,-500.0,0.00030136,2]
[311581934,1705254645284,-500.0,0.00030136,2]
[311581936,1705254645293,-500.0,0.00030136,2]
[311581938,1705254645302,-589.24,0.00030136,2]
[311581940,1705254645311,-500.0,0.00030136,2]
[311581942,1705254645320,-1158.19,0.00030136,2]
[311581944,1705254645328,-1336.34,0.00030136,2]
[311581946,1705254645337,-705.78,0.00030136,2]
[311581948,1705254645346,-500.0,0.00030136,2]
[311581950,1705254645355,-500.0,0.00030136,2]
[311581951,1705254645364,-500.0,0.00030136,2]
[311581953,1705254645373,-1278.82,0.00030136,2]
[311581956,1705254645382,-872.06,0.00030136,2]
[311581957,1705254645391,-614.72,0.00030136,2]
[311581960,1705254645401,-693.44,0.00030136,2]
[311581961,1705254645410,-500.0,0.00030136,2]
[311581963,1705254645419,-1275.99,0.00030136,2]
[311581966,1705254645428,-630.84,0.00030136,2]
[311581968,1705254645437,-658.22,0.00030136,2]
[311581970,1705254645446,-530.81,0.00030136,2]
[311581971,1705254645456,-560.34,0.00030136,2]
[311581974,1705254645465,-500.0,0.00030136,2]
[311581976,1705254645473,-500.0,0.00030136,2]
[311581978,1705254645483,-510.82,0.00030136,2]
[311581979,1705254645492,-981.13,0.00030136,2]
[311581981,1705254645501,-500.0,0.00030136,2]
[311581983,1705254645510,-500.0,0.00030136,2]
[311581985,1705254645519,-500.0,0.00030136,2]
[311581987,1705254645528,-500.0,0.00030136,2]
[311581989,1705254645537,-772.78,0.00030136,2]
[311581991,1705254645546,-500.0,0.00030136,2]
[311581993,1705254645555,-500.0,0.00030136,2]
[311581995,1705254645564,-500.0,0.00030136,2]
[311581997,1705254645573,-500.0,0.00030136,2]
[311581999,1705254645583,-500.0,0.00030136,2]
[311582001,1705254645592,-500.0,0.00030136,2]
[311582003,1705254645601,-500.0,0.00030136,2]
[311582006,1705254645610,-464.9124948,0.00030136,2]
[311582008,1705254645619,-500.0,0.00030136,2]
[311582010,1705254645630,-500.0,0.00030136,2]
[311582012,1705254645640,-500.0,0.00030136,2]
[311582013,1705254645650,-500.0,0.00030136,2]
[311582015,1705254645659,-500.0,0.00030136,2]
[311582017,1705254645669,-848.01,0.00030136,2]
[311582020,1705254645678,-1459.83,0.00030136,2]
[311582022,1705254645688,-623.93,0.00030136,2]
[311582024,1705254645697,-500.0,0.00030136,2]
[311582025,1705254645706,-945.09,0.00030136,2]
[311582027,1705254645716,-701.62,0.00030136,2]
[311582029,1705254645724,-500.0,0.00030136,2]
[311582031,1705254645733,-500.0,0.00030136,2]
[311582033,1705254645742,-445.24713012,0.00030136,2]
[311582035,1705254645752,-500.0,0.00030136,2]
[311582037,1705254645761,-500.0,0.00030136,2]
[311582039,1705254645771,-500.0,0.00030136,2]
[311582041,1705254645780,-1076.56,0.00030136,2]
[311582044,1705254645790,-500.0,0.00030136,2]
[311582045,1705254645799,-506.39488757,0.00030136,2]
[311582047,1705254645809,-1062.5,0.00030136,2]
[311582050,1705254645819,-1257.99,0.00030136,2]
[311582051,1705254645829,-500.0,0.00030136,2]
[311582053,1705254645838,-500.0,0.00030136,2]
[311582056,1705254645847,-500.0,0.00030136,2]
[311582057,1705254645856,-500.0,0.00030136,2]
[311582059,1705254645866,-178.01289487,0.00030136,2]
[311582061,1705254645875,-505.85,0.00030136,2]
[311582063,1705254645884,-500.0,0.00030136,2]
[311582065,1705254645893,-502.72607135,0.00030136,2]
[311582067,1705254645902,-911.18,0.00030136,2]
[311582069,1705254645911,-500.0,0.00030136,2]
[311582071,1705254645921,-500.0,0.00030136,2]
[311582073,1705254645931,-500.0,0.00030136,2]
[311582075,1705254645941,-1141.48,0.00030136,2]
[311582077,1705254645950,-500.0,0.00030136,2]
[311582079,1705254645959,-578.73,0.00030136,2]
[311582082,1705254645969,-876.48,0.00030136,2]
[311582084,1705254645979,-500.0,0.00030136,2]
[311582086,1705254645989,-500.0,0.00030136,2]
[311582088,1705254645998,-1408.36,0.00030136,2]
[311582090,1705254646007,-500.0,0.00030136,2]
[311582092,1705254646016,-500.0,0.00030136,2]
[311582094,1705254646026,-500.0,0.00030136,2]
[311582095,1705254646037,-652.92,0.00030136,2]
[311582097,1705254646047,-500.0,0.00030136,2]
[311582099,1705254646055,-700.49,0.00030136,2]
[311582101,1705254646064,-535.93,0.00030136,2]
[311582103,1705254646074,-1369.55,0.00030136,2]
[311582105,1705254646083,-504.49477991,0.00030136,2]
[311582108,1705254646093,-500.0,0.00030136,2]
[311582109,1705254646103,-655.51,0.00030136,2]
[311582111,1705254646113,-500.0,0.00030136,2]
[311582113,1705254646122,-1152.05,0.00030136,2]
[311582116,1705254646131,-1693.97,0.00030136,2]
[311582118,1705254646141,-500.0,0.00030136,2]
[311582119,1705254646151,-576.41,0.00030136,2]
[311582122,1705254646161,-561.25061022,0.00030136,2]
[311582125,1705254646169,-500.0,0.00030136,2]
[311582128,1705254646178,-504.34511176,0.00030136,2]
[311582131,1705254646188,-500.0,0.00030136,2]
[311582134,1705254646197,-501.92622542,0.00030136,2]
[311582137,1705254646205,-500.0,0.00030136,2]
[311582140,1705254646214,-674.01,0.00030136,2]
[311582143,1705254646223,-1489.68,0.00030136,2]
[311582146,1705254646232,-666.56,0.00030136,2]
[311582149,1705254646242,-500.0,0.00030136,2]
[311582152,1705254646250,-500.0,0.00030136,2]
[311582153,1705254646259,-500.0,0.00030136,2]
[311582155,1705254646269,-1084.26,0.00030136,2]
[311582158,1705254646278,-589.02386057,0.00030136,2]
[311582159,1705254646287,-500.0,0.00030136,2]
[311582161,1705254646296,-500.0,0.00030136,2]
[311582163,1705254646304,-500.0,0.00030136,2]
[311582165,1705254646314,-500.0,0.00030136,2]
[311582167,1705254646323,-507.6,0.00030136,2]
[311582169,1705254646333,-672.02,0.00030136,2]
[311582171,1705254646342,-500.0,0.00030136,2]
[311582173,1705254646351,-500.0,0.00030136,2]
[311582175,1705254646360,-500.0,0.00030136,2]
[311582177,1705254646369,-500.0,0.00030136,2]
[311582179,1705254646378,-500.0,0.00030136,2]
[311582182,1705254646388,-500.0,0.00030136,2]
[311582183,1705254646396,-500.0,0.00030136,2]
[311582184,1705254646405,-500.0,0.00030136,2]
[311582185,1705254646414,-1102.17,0.00030136,2]
[311582186,1705254646422,-1616.4,0.00030136,2]
[311582187,1705254646431,-500.0,0.00030136,2]
[311582188,1705254646440,-816.43,0.00030136,2]
[311582189,1705254646448,-500.0,0.00030136,2]
[311582190,1705254646457,-500.0,0.00030136,2]
[311582192,1705254646465,-500.0,0.00030136,2]
[311582194,1705254646474,-719.58,0.00030136,2]
[311582196,1705254646483,-807.28,0.00030136,2]
[311582198,1705254646492,-500.0,0.00030136,2]
[311582200,1705254646501,-500.0,0.00030136,2]
[311582202,1705254646510,-815.19,0.00030136,2]
[311582204,1705254646519,-716.18,0.00030136,2]
[311582206,1705254646528,-675.06,0.00030136,2]
[311582208,1705254646537,-683.69,0.00030136,2]
[311582210,1705254646546,-500.0,0.00030136,2]
[311582212,1705254646555,-500.0,0.00030136,2]
[311582214,1705254646564,-623.19,0.00030136,2]
[311582216,1705254646573,-500.0,0.00030136,2]
[311582218,1705254646582,-500.0,0.00030136,2]
[311582220,1705254646592,-1243.95,0.00030136,2]
[311582222,1705254646601,-1006.49,0.00030136,2]
[311582224,1705254646610,-1113.17,0.00030136,2]
[311582226,1705254646619,-500.0,0.00030136,2]
[311582228,1705254646628,-500.0,0.00030136,2]
[311582230,1705254646637,-510.34,0.00030136,2]
[311582232,1705254646646,-500.0,0.00030136,2]
[311582234,1705254646655,-674.12,0.00030136,2]
[311582236,1705254646664,-500.0,0.00030136,2]
[311582238,1705254646673,-596.91,0.00030136,2]
[311582240,1705254646681,-941.41,0.00030136,2]
[311582242,1705254646691,-500.0,0.00030136,2]
[311582244,1705254646700,-1779.19,0.00030136,2]
[311582246,1705254646709,-500.0,0.00030136,2]
[311582248,1705254646718,-536.5,0.00030136,2]
[311582250,1705254646727,-1166.57,0.00030136,2]
[311582252,1705254646735,-500.0,0.00030136,2]
[311582254,1705254646744,-500.0,0.00030136,2]
[311582256,1705254646753,-500.0,0.00030136,2]
[311582258,1705254646762,-500.0,0.00030136,2]
[311582260,1705254646772,-886.77,0.00030136,2]
[311582262,1705254646781,-500.0,0.00030136,2]
[311582263,1705254646790,-806.69,0.00030136,2]
[311582266,1705254646800,-1076.44,0.00030136,2]
[311582267,1705254646809,-500.0,0.00030136,2]
[311582269,1705254646819,-644.5,0.00030136,2]
[311582272,1705254646828,-500.0,0.00030136,2]
[311582274,1705254646838,-500.0,0.00030136,2]
[311582275,1705254646850,-1000.0,0.00030136,2]
[311582278,1705254646859,-500.0,0.00030136,2]
[311582280,1705254646868,-846.39,0.00030136,2]
[311582281,1705254646877,-500.0,0.00030136,2]
[311582284,1705254646886,-500.0,0.00030136,2]
[311582286,1705254646897,-654.91,0.00030136,2]
[311582288,1705254646907,-500.0,0.00030136,2]
[311582290,1705254646916,-500.0,0.00030136,2]
[311582292,1705254646926,-631.36,0.00030136,2]
[311582294,1705254646936,-500.0,0.00030136,2]
[311582296,1705254646947,-505.5,0.00030136,2]
[311582298,1705254646957,-1250.68,0.00030136,2]
[311582300,1705254646966,-1405.3,0.00030136,2]
[311582301,1705254646975,-214.02874264,0.00030136,2]
[311582303,1705254646985,-500.0,0.00030136,2]
[311582306,1705254646994,-614.66,0.00030136,2]
[311582307,1705254647003,-500.0,0.00030136,2]
[311582310,1705254647012,-500.0,0.00030136,2]
[311582311,1705254647021,-500.0,0.00030136,2]
[311582314,1705254647030,-500.0,0.00030136,2]
[311582315,1705254647039,-500.0,0.00030136,2]
[311582318,1705254647049,-500.38,0.00030136,2]
[311582320,1705254647058,-500.0,0.00030136,2]
[311582321,1705254647067,-500.0,0.00030136,2]
[311582323,1705254647076,-500.0,0.00030136,2]
[311582325,1705254647085,-736.6,0.00030136,2]
[311582327,1705254647095,-500.0,0.00030136,2]
[311582330,1705254647105,-500.0,0.00030136,2]
[311582332,1705254647114,-1600.55,0.00030136,2]
[311582334,1705254647122,-698.58,0.00030136,2]
[311582336,1705254647131,-500.0,0.00030136,2]
[311582338,1705254647140,-500.0,0.00030136,2]
[311582340,1705254647149,-500.0,0.00030136,2]
[311582342,1705254647158,-1355.09,0.00030136,2]
[311582344,1705254647167,-500.0,0.00030136,2]
[311582345,1705254647176,-783.01,0.00030136,2]
[311582348,1705254647188,-500.0,0.00030136,2]
[311582350,1705254647198,-500.0,0.00030136,2]
[311582351,1705254647206,-694.09,0.00030136,2]
[311582353,1705254647215,-500.0,0.00030136,2]
[311582356,1705254647225,-502.06898603,0.00030136,2]
[311582358,1705254647234,-698.64,0.00030136,2]
[311582360,1705254647243,-500.0,0.00030136,2]
[311582362,1705254647252,-500.0,0.00030136,2]
[311582364,1705254647261,-500.0,0.00030136,2]
[311582365,1705254647270,-500.0,0.00030136,2]
[311582367,1705254647279,-500.0,0.00030136,2]
[311582369,1705254647288,-500.0,0.00030136,2]
[311582372,1705254647297,-893.97,0.00030136,2]
[311582374,1705254647306,-500.0,0.00030136,2]
[311582376,1705254647315,-802.7,0.00030136,2]
[311582378,1705254647324,-877.73,0.00030136,2]
[311582380,1705254647333,-500.0,0.00030136,2]
[311582382,1705254647342,-500.0,0.00030136,2]
[311582384,1705254647351,-500.0,0.00030136,2]
[311582386,1705254647360,-562.74,0.00030136,2]
[311582388,1705254647369,-643.5,0.00030136,2]
[311582390,1705254647378,-843.19,0.00030136,2]
[311582406,1705254647514,-500.0,0.00030136,2]
[311582408,1705254647525,-959.0,0.00030136,2]
[311582410,1705254647534,-500.0,0.00030136,2]
[311582412,1705254647543,-942.69,0.00030136,2]
[311582414,1705254647552,-688.19,0.00030136,2]
[311582416,1705254647561,-180.17793095,0.00030136,2]
[311582418,1705254647570,-500.0,0.00030136,2]
[311582420,1705254647579,-599.8,0.00030136,2]
[311582422,1705254647589,-500.0,0.00030136,2]
[311582424,1705254647598,-322.16855863,0.00030136,2]
[311582426,1705254647607,-683.36,0.00030136,2]
[311582428,1705254647617,-1340.22,0.00030136,2]
[311582430,1705254647626,-1310.4,0.00030136,2]
[311582432,1705254647635,-500.0,0.00030136,2]
[311582434,1705254647644,-509.00640663,0.00030136,2]
[311582436,1705254647653,-2865.82,0.00030136,2]
[311582438,1705254647662,-500.0,0.00030136,2]
[311582440,1705254647671,-500.0,0.00030136,2]
[311582442,1705254647680,-500.0,0.00030136,2]
[311582444,1705254647689,-685.16,0.00030136,2]
[311582446,1705254647699,-500.0,0.00030136,2]
[311582448,1705254647707,-500.0,0.00030136,2]
[311582450,1705254647716,-540.62,0.00030136,2]
[311582452,1705254647725,-526.27,0.00030136,2]
[311582454,1705254647735,-500.0,0.00030136,2]
[311582456,1705254647744,-500.0,0.00030136,2]
[311582458,1705254647754,-2183.89,0.00030136,2]
[311582459,1705254647762,-2162.44,0.00030136,2]
[311582460,1705254647771,-500.0,0.00030136,2]
[311582461,1705254647780,-555.95,0.00030136,2]
[311582462,1705254647789,-500.0,0.00030136,2]
[311582463,1705254647797,-500.0,0.00030136,2]
[311582464,1705254647806,-500.0,0.00030136,2]
[311582465,1705254647815,-500.0,0.00030136,2]
[311582467,1705254647824,-860.3,0.00030136,2]
[311582470,1705254647835,-500.0,0.00030136,2]
[311582472,1705254647845,-277.00812911,0.00030136,2]
[311582474,1705254647854,-500.0,0.00030136,2]
[311582476,1705254647864,-500.0,0.00030136,2]
[311582478,1705254647873,-500.0,0.00030136,2]
[311582480,1705254647882,-500.0,0.00030136,2]
[311582482,1705254647892,-500.0,0.00030136,2]
[311582484,1705254647901,-250.0,0.00030136,2]
[311582486,1705254647911,-306.07097823,0.00030136,2]
[311582488,1705254647919,-500.0,0.00030136,2]
[311582490,1705254647928,-500.0,0.00030136,2]
[311582492,1705254647937,-349.17798906,0.00030136,2]
[311582494,1705254647947,-500.0,0.00030136,2]
[311582496,1705254647956,-689.79,0.00030136,2]
[311582498,1705254647965,-500.0,0.00030136,2]
[311582500,1705254647974,-4135.39,0.00030136,2]
[311582502,1705254647983,-500.0,0.00030136,2]
[311582504,1705254647992,-500.0,0.00030136,2]
[311582506,1705254648002,-500.0,0.00030136,2]
[311582508,1705254648013,-500.0,0.00030136,2]
[311582510,1705254648023,-3000.0,0.00030136,2]
[311582512,1705254648037,-500.0,0.00030136,2]
[311582514,1705254648046,-500.0,0.00030136,2]
[311582516,1705254648056,-571.36,0.00030136,2]
[311582519,1705254648065,-625.54,0.00030136,2]
[311582521,1705254648076,-500.0,0.00030136,2]
[311582523,1705254648085,-500.0,0.00030136,2]
[311582525,1705254648095,-841.27,0.00030136,2]
[311582527,1705254648105,-952.77,0.00030136,2]
[311582529,1705254648115,-500.0,0.00030136,2]
[311582531,1705254648124,-500.0,0.00030136,2]
[311582533,1705254648133,-500.0,0.00030136,2]
[311582535,1705254648142,-500.0,0.00030136,2]
[311582537,1705254648152,-760.3,0.00030136,2]
[311582539,1705254648161,-851.47,0.00030136,2]
[311582541,1705254648169,-500.0,0.00030136,2]
[311582543,1705254648179,-722.99,0.00030136,2]
[311582545,1705254648188,-934.33,0.00030136,2]
[311582547,1705254648197,-2085.35,0.00030136,2]
[311582549,1705254648210,-1571.04,0.00030136,2]
[311582551,1705254648219,-500.0,0.00030136,2]
[311582553,1705254648228,-528.2,0.00030136,2]
[311582555,1705254648237,-500.0,0.00030136,2]
[311582557,1705254648246,-500.0,0.00030136,2]
[311582559,1705254648255,-500.0,0.00030136,2]
[311582561,1705254648264,-500.0,0.00030136,2]
[311582563,1705254648273,-500.0,0.00030136,2]
[311582565,1705254648283,-1072.63,0.00030136,2]
[311582567,1705254648291,-500.0,0.00030136,2]
[311582569,1705254648300,-500.0,0.00030136,2]
[311582571,1705254648310,-500.0,0.00030136,2]
[311582573,1705254648319,-500.0,0.00030136,2]
[311582575,1705254648328,-1143.88,0.00030136,2]
[311582577,1705254648337,-500.0,0.00030136,2]
[311582579,1705254648347,-866.3,0.00030136,2]
[311582581,1705254648356,-687.83,0.00030136,2]
[311582583,1705254648366,-500.0,0.00030136,2]
[311582585,1705254648375,-1451.85,0.00030136,2]
[311582587,1705254648384,-1260.44,0.00030136,2]
[311582589,1705254648394,-601.33,0.00030136,2]
[311582591,1705254648403,-1285.21,0.00030136,2]
[311582593,1705254648413,-686.68,0.00030136,2]
[311582595,1705254648422,-431.97105323,0.00030136,2]
[311582597,1705254648431,-539.77686456,0.00030136,2]
[311582599,1705254648440,-500.0,0.00030136,2]
[311582601,1705254648450,-500.0,0.00030136,2]
[311582603,1705254648459,-837.43,0.00030136,2]
[311582606,1705254648468,-500.0,0.00030136,2]
[311582607,1705254648477,-500.0,0.00030136,2]
[311582610,1705254648487,-3602.0,0.00030136,2]
[311582612,1705254648496,-504.32633675,0.00030136,2]
[311582614,1705254648506,-1091.0,0.00030136,2]
[311582616,1705254648514,-721.53,0.00030136,2]
[311582618,1705254648524,-938.24,0.00030136,2]
[311582620,1705254648533,-500.0,0.00030136,2]
[311582622,1705254648542,-500.0,0.00030136,2]
[311582624,1705254648551,-500.0,0.00030136,2]
[311582626,1705254648560,-4612.85,0.00030136,2]
[311582628,1705254648569,-1262.49,0.00030136,2]
[311582630,1705254648578,-687.1,0.00030136,2]
[311582632,1705254648587,-500.0,0.00030136,2]
[311582634,1705254648597,-1000.0,0.00030136,2]
[311582636,1705254648606,-1568.3,0.00030136,2]
[311582638,1705254648615,-562.13362741,0.00030136,2]
[311582640,1705254648624,-945.26,0.00030136,2]
[311582642,1705254648633,-500.0,0.00030136,2]
[311582644,1705254648642,-500.0,0.00030136,2]
[311582646,1705254648651,-1939.61,0.00030136,2]
[311582648,1705254648661,-500.0,0.00030136,2]
[311582650,1705254648670,-921.19,0.00030136,2]
[311582652,1705254648679,-2489.84,0.00030136,2]
[311582654,1705254648688,-500.0,0.00030136,2]
[311582656,1705254648697,-1872.87,0.00030136,2]
[311582658,1705254648706,-500.0,0.00030136,2]
[311582660,1705254648715,-500.0,0.00030136,2]
[311582662,1705254648724,-588.83,0.00030136,2]
[311582664,1705254648734,-500.0,0.00030136,2]
[311582666,1705254648743,-500.0,0.00030136,2]
[311582668,1705254648752,-738.3,0.00030136,2]
[311582670,1705254648761,-882.91,0.00030136,2]
[311582672,1705254648770,-540.32,0.00030136,2]
[311582674,1705254648780,-1363.03,0.00030136,2]
[311582676,1705254648790,-500.0,0.00030136,2]
[311582678,1705254648799,-500.0,0.00030136,2]
[311582680,1705254648812,-1915.63,0.00030136,2]
[311582683,1705254648823,-1446.64,0.00030136,2]
[311582685,1705254648832,-670.56,0.00030136,2]
[311582687,1705254648841,-500.0,0.00030136,2]
[311582689,1705254648850,-500.0,0.00030136,2]
[311582691,1705254648859,-1006.82,0.00030136,2]
[311582693,1705254648868,-177.86727125,0.00030136,2]
[311582695,1705254648878,-1556.76,0.00030136,2]
[311582697,1705254648887,-644.61,0.00030136,2]
[311582699,1705254648896,-500.0,0.00030136,2]
[311582701,1705254648906,-693.93,0.00030136,2]
[311582703,1705254648915,-500.0,0.00030136,2]
[311582705,1705254648925,-500.0,0.00030136,2]
[311582707,1705254648937,-1345.3,0.00030136,2]
[311582709,1705254648947,-500.0,0.00030136,2]
[311582711,1705254648957,-863.23,0.00030136,2]
[311582713,1705254648966,-979.22,0.00030136,2]
[311582715,1705254648976,-500.0,0.00030136,2]
[311582717,1705254648985,-500.0,0.00030136,2]
[311582719,1705254648995,-500.0,0.00030136,2]
[311582720,1705254649005,-1093.2,0.00030136,2]
[311582721,1705254649014,-500.0,0.00030136,2]
[311582722,1705254649023,-1230.76,0.00030136,2]
[311582723,1705254649032,-500.0,0.00030136,2]
[311582724,1705254649042,-582.59,0.00030136,2]
[311582725,1705254649051,-500.0,0.00030136,2]
[311582727,1705254649061,-1047.0,0.00030136,2]
[311582729,1705254649070,-7358.68,0.00030136,2]
[311582731,1705254649080,-500.0,0.00030136,2]
[311582733,1705254649090,-1416.84,0.00030136,2]
[311582735,1705254649100,-817.18,0.00030136,2]
[311582737,1705254649110,-500.0,0.00030136,2]
[311582739,1705254649119,-500.0,0.00030136,2]
[311582741,1705254649129,-905.22,0.00030136,2]
[311582743,1705254649138,-500.0,0.00030136,2]
[311582745,1705254649147,-2225.84,0.00030136,2]
[311582747,1705254649156,-1065.28,0.00030136,2]
[311582750,1705254649165,-500.0,0.00030136,2]
[311582751,1705254649175,-959.87,0.00030136,2]
[311582754,1705254649184,-1555.59,0.00030136,2]
[311582756,1705254649196,-500.0,0.00030136,2]
[311582758,1705254649205,-643.05,0.00030136,2]
[311582760,1705254649214,-1807.93,0.00030136,2]
[311582762,1705254649223,-2257.62,0.00030136,2]
[311582764,1705254649233,-500.0,0.00030136,2]
[311582766,1705254649242,-1129.54,0.00030136,2]
[311582768,1705254649252,-500.0,0.00030136,2]
[311582770,1705254649262,-959.3,0.00030136,2]
[311582772,1705254649271,-3252.88,0.00030136,2]
[311582774,1705254649281,-502.28,0.00030136,2]
[311582776,1705254649290,-1388.45,0.00030136,2]
[311582778,1705254649299,-1165.78,0.00030136,2]
[311582779,1705254649309,-500.0,0.00030136,2]
[311582781,1705254649318,-2793.81,0.00030136,2]
[311582784,1705254649328,-500.0,0.00030136,2]
[311582785,1705254649337,-500.0,0.00030136,2]
[311582788,1705254649348,-1017.91,0.00030136,2]
[311582789,1705254649357,-874.99,0.00030136,2]
[311582791,1705254649366,-500.0,0.00030136,2]
[311582793,1705254649375,-500.0,0.00030136,2]
[311582796,1705254649385,-6280.95,0.00030136,2]
[311582797,1705254649394,-915.83,0.00030136,2]
[311582800,1705254649403,-500.0,0.00030136,2]
[311582802,1705254649413,-1952.99,0.00030136,2]
[311582804,1705254649422,-676.52,0.00030136,2]
[311582806,1705254649431,-630.37,0.00030136,2]
[311582807,1705254649440,-3111.79,0.00030136,2]
[311582810,1705254649450,-500.0,0.00030136,2]
[311582812,1705254649459,-500.0,0.00030136,5]
[311582814,1705254649468,-2353.93,0.00030136,2]
[311582816,1705254649477,-500.0,0.00030136,2]
[311582818,1705254649487,-500.0,0.00030136,2]
[311582820,1705254649496,-500.0,0.00030136,2]
[311582822,1705254649505,-500.0,0.00030136,2]
[311582824,1705254649514,-500.0,0.00030136,2]
[311582825,1705254649524,-1027.37,0.00030136,2]
[311582828,1705254649534,-500.0,0.00030136,2]
[311582829,1705254649543,-1411.48,0.00030136,2]
[311582831,1705254649552,-688.75,0.00030136,2]
[311582834,1705254649561,-500.0,0.00030136,2]
[311582836,1705254649571,-500.0,0.00030136,2]
[311582837,1705254649579,-974.58,0.00030136,2]
[311582840,1705254649588,-500.0,0.00030136,2]
[311582842,1705254649599,-2751.81,0.00030136,2]
[311582877,1705254649914,-500.0,0.00030136,2]
[311582880,1705254649938,-500.0,0.00030136,2]
[311582882,1705254649948,-500.0,0.00030136,2]
[311582884,1705254649958,-527.27601211,0.00030136,2]
[311582886,1705254649967,-1119.46,0.00030136,2]
[311582888,1705254649976,-515.8279289,0.00030136,2]
[311582890,1705254649985,-500.0,0.00030136,2]
[311582892,1705254649994,-4919.77,0.00030136,2]
[311582894,1705254650003,-678.6,0.00030136,2]
[311582896,1705254650013,-500.0,0.00030136,2]
[311582898,1705254650023,-500.0,0.00030136,2]
[311582901,1705254650036,-1605.99,0.00030136,2]
[311582903,1705254650046,-185.92,0.00030136,2]
[311582905,1705254650055,-2030.96,0.00030136,2]
[311582907,1705254650065,-501.98042675,0.00030136,2]
[311582909,1705254650075,-500.0,0.00030136,2]
[311582911,1705254650084,-3355.30467466,0.00030136,2]
[311582977,1705254650744,-1512.623474,0.00030136,2]
[311582984,1705254650800,-1422.52185134,0.00030136,2]
[311582986,1705254650810,-500.0,0.00030136,2]
[311582988,1705254650820,-854.47549803,0.00030136,2]
[311582990,1705254650832,-284.1185386,0.00030136,2]
[311582994,1705254650858,-343.35768817,0.00029713,2]
[311582996,1705254650867,-362.64761208,0.00030136,2]
[311582998,1705254650878,-298.62800448,0.00030136,2]
[311583002,1705254650909,-2696.14034681,0.00030136,2]
[311583004,1705254650918,-671.9492434,0.00030136,2]
[311583006,1705254650930,-75.5707566,0.00030136,2]
[311583009,1705254650939,-500.0,0.00030136,2]
[311583011,1705254650950,-2657.56,0.00030136,2]
[311583013,1705254650959,-635.11,0.00030136,2]
[311583015,1705254650968,-13749.45,0.00030136,2]
[311583017,1705254650978,-500.0,0.00030136,2]
[311583018,1705254650987,-13923.52,0.00030136,2]
[311583020,1705254650996,-1053.84,0.00030136,2]
[311583022,1705254651006,-500.0,0.00030136,2]
[311583024,1705254651015,-1086.88,0.00030136,2]
[311583026,1705254651024,-500.0,0.00030136,2]